[Event "UKR-ch Semifinal 2019"]
[Site "Omelnyk"]
[Date "2019.10.14"]
[Round "9.5"]
[White "Polivanov, Anatoliy"]
[Black "Peng, Li Min"]
[Result "1/2-1/2"]
[ECO "B40"]
[WhiteElo "2411"]
[BlackElo "2454"]
[Annotator "RC"]
[PlyCount "83"]
[EventDate "2019.10.06"]
[EventType "swiss"]
[EventCountry "UKR"]
[SourceTitle "playchess.com"]
[Source "ChessBase"]
[SourceQuality "1"]
[TimeControl "40/5400+30:1800+30"]

1. e4 {[%emt 0:00:00]} c5 {[%emt 0:02:54]} 2. Nf3 {[%emt 0:00:00]} e6 {[%emt 0:00:06]} 3. c3 {[%emt 0:00:02]} Nf6 {[%emt 0:00:11]} 4. e5 {[%emt 0:00:12]} Nd5 {[%emt 0:00:06]} 5. Bc4 {[%emt 0:02:37]} d6 {[%emt 0:06:44]} 6. d4 {[%emt 0:00:33]} cxd4 {[%emt 0:01:03]} 7. cxd4 {[%emt 0:00:06]} Nc6 {[%emt 0:00:38]} 8. Qe2 {[%emt 0:04:04]} dxe5 {[%emt 0:07:56]} 9. dxe5 {[%emt 0:00:07]} Bb4+ {[%emt 0:03:57]} 10. Nbd2 {[%emt 0:04:21]} Nf4 {[%emt 0:09:27]} 11. Qe4 {[%emt 0:00:20]} Ng6 {[%emt 0:00:06]} 12. O-O {[%emt 0:02:24]} Qc7 {[%emt 0:03:24]} 13. Bb5 {[%emt 0:11:22]} Be7 {[%emt 0:06:45]} 14. Nc4 {[%emt 0:20:35]} O-O {[%emt 0:02:39]} 15. Bxc6 {[%emt 0:05:42]} Qxc6 {[%emt 0:03:52]} 16. Qxc6 {[%emt 0:00:10]} bxc6 {[%emt 0:00:02]} 17. Be3 {[%emt 0:02:53]} Ba6 {[%emt 0:04:53]} 18. Rfc1 {[%emt 0:02:04]} c5 {[%emt 0:04:24]} 19. Ncd2 {[%emt 0:07:21]} Rfc8 {[%emt 0:08:28]} 20. Rc3 {[%emt 0:11:22]} Rc7 {[%emt 0:02:58]} 21. Rac1 {[%emt 0:00:58]} Rac8 {[%emt 0:00:02]} 22. Nc4 {[%emt 0:09:54]} Rd8 {[%emt 0:09:35]} 23. h3 {[%emt 0:05:58]} Rd5 {[%emt 0:05:49]} 24. b3 {[%emt 0:00:09]} f6 {[%emt 0:09:00]} 25. exf6 {[%emt 0:00:05]} gxf6 {[%emt 0:00:00]} 26. Nb2 {[%emt 0:00:35]} f5 {[%emt 0:00:26]} 27. Na4 {[%emt 0:03:20]} c4 {[%emt 0:00:01]} 28. bxc4 Ra5 29. Nb2 {[%emt 0:00:32]} Bf6 {[%emt 0:01:21]} 30. Rb3 {[%emt 0:00:54]} Rxa2 {[%emt 0:00:00]} 31. Nd3 {[%emt 0:02:48]} Rxc4 {[%emt 0:02:54]} 32. Rb8+ {[%emt 0:00:20]} Kg7 {[%emt 0:00:01]} 33. Rcb1 {[%emt 0:01:09]} Be7 {[%emt 0:03:21]} 34. Nfe5 {[%emt 0:00:44]} Rca4 {[%emt 0:02:26]} 35. Nxg6 {[%emt 0:01:53]} hxg6 {[%emt 0:00:01]} 36. Nc5 {[%emt 0:00:15]} Bxc5 {[%emt 0:00:44]} 37. Bxc5 {[%emt 0:00:05]} e5 {[%emt 0:00:35]} 38. Ra8 {[%emt 0:00:49]} Ra1 {[%emt 0:00:42]} 39. Rxa7+ {[%emt 0:00:31]} Kf6 {[%emt 0:00:05]} 40. Rxa1 {[%emt 0:00:00]} Rxa1+ {[%emt 0:00:00]} 41. Kh2 {[%emt 0:00:28]} Ra2 {[%emt 0:01:58]} 42. Ra8 {[%emt 0:10:04]} 1/2-1/2

[Event "UKR-ch Semifinal 2019"]
[Site "Omelnyk"]
[Date "2019.10.14"]
[Round "9.6"]
[White "Solovchuk, Oleksiy"]
[Black "Bakhmatsky, Vladislav"]
[Result "0-1"]
[ECO "D97"]
[WhiteElo "2261"]
[BlackElo "2445"]
[Annotator "RC"]
[PlyCount "124"]
[EventDate "2019.10.06"]
[EventType "swiss"]
[EventCountry "UKR"]
[SourceTitle "playchess.com"]
[Source "ChessBase"]
[SourceQuality "1"]
[TimeControl "40/5400+30:1800+30"]

1. d4 {[%emt 0:03:54]} Nf6 {[%emt 0:00:00]} 2. c4 {[%emt 0:00:03]} g6 {[%emt 0:00:00]} 3. Nc3 {[%emt 0:00:03]} d5 {[%emt 0:00:00]} 4. Nf3 {[%emt 0:00:12]} Bg7 {[%emt 0:00:00]} 5. Qb3 {[%emt 0:00:03]} dxc4 {[%emt 0:00:00]} 6. Qxc4 {[%emt 0:00:03]} O-O {[%emt 0:00:07]} 7. e4 {[%emt 0:00:02]} Be6 {[%emt 0:02:16]} 8. d5 {[%emt 0:02:29]} Bc8 {[%emt 0:00:01]} 9. Bf4 {[%emt 0:02:56]} c6 {[%emt 0:01:10]} 10. dxc6 {[%emt 0:00:07]} Nxc6 {[%emt 0:04:25]} 11. Rd1 {[%emt 0:00:13]} Qa5 {[%emt 0:28:53]} 12. Qb5 {[%emt 0:00:29]} Be6 13. Qxa5 {[%emt 0:04:43]} Nxa5 {[%emt 0:09:04]} 14. Be2 {[%emt 0:23:53]} Rac8 {[%emt 0:35:58]} 15. Be3 {[%emt 0:34:00]} a6 {[%emt 0:06:57]} 16. Nd4 {[%emt 0:04:07]} Nc4 {[%emt 0:01:48]} 17. Bc1 {[%emt 0:00:36]} Bd7 {[%emt 0:01:13]} 18. f3 {[%emt 0:02:28]} Rfd8 {[%emt 0:01:34]} 19. Kf2 {[%emt 0:00:53]} b5 {[%emt 0:01:34]} 20. Rhe1 {[%emt 0:05:50]} b4 {[%emt 0:00:53]} 21. Nd5 {[%emt 0:00:07]} Nxd5 {[%emt 0:00:17]} 22. exd5 {[%emt 0:00:05]} a5 {[%emt 0:01:45]} 23. b3 {[%emt 0:01:42]} Nb6 {[%emt 0:01:14]} 24. Nc6 {[%emt 0:00:04]} Bxc6 {[%emt 0:00:38]} 25. dxc6 {[%emt 0:00:04]} Rd5 {[%emt 0:01:31]} 26. Ba6 {[%emt 0:06:52]} Rxc6 {[%emt 0:00:17]} 27. Bb7 {[%emt 0:00:02]} Rc2+ {[%emt 0:00:33]} 28. Kf1 {[%emt 0:00:03]} Rxd1 {[%emt 0:00:28]} 29. Rxd1 {[%emt 0:00:01]} Bd4 {[%emt 0:00:47]} 30. Be4 {[%emt 0:04:23]} Rc8 {[%emt 0:00:01]} 31. Bh6 {[%emt 0:01:26]} Bc5 {[%emt 0:00:53]} 32. Bf4 {[%emt 0:00:43]} Bd6 {[%emt 0:00:47]} 33. Bxd6 {[%emt 0:00:07]} Rd8 {[%emt 0:00:12]} 34. Rc1 {[%emt 0:00:49]} Rxd6 {[%emt 0:00:15]} 35. Rc5 {[%emt 0:00:21]} e6 {[%emt 0:01:13]} 36. Rxa5 {[%emt 0:00:32]} Rd2 {[%emt 0:00:19]} 37. f4 {[%emt 0:02:46]} Nd5 {[%emt 0:00:30]} 38. Ke1 {[%emt 0:00:55]} Rb2 {[%emt 0:00:02]} 39. Bxd5 {[%emt 0:00:12]} exd5 {[%emt 0:00:01]} 40. Rxd5 {[%emt 0:00:00]} Rxa2 {[%emt 0:00:00]} 41. Rd2 {[%emt 0:01:52]} Ra1+ {[%emt 0:02:22]} 42. Ke2 {[%emt 0:00:32]} Rb1 {[%emt 0:00:06]} 43. Rd3 {[%emt 0:00:10]} Rb2+ {[%emt 0:00:55]} 44. Kf3 {[%emt 0:00:14]} h5 {[%emt 0:02:34]} 45. h4 {[%emt 0:01:43]} Kg7 {[%emt 0:00:39]} 46. g3 {[%emt 0:00:04]} Kf6 {[%emt 0:00:30]} 47. Ke4 {[%emt 0:00:05]} Re2+ {[%emt 0:03:34]} 48. Kd5 {[%emt 0:00:58]} Kf5 {[%emt 0:00:09]} 49. Kc5 {[%emt 0:00:13]} Re4 {[%emt 0:00:55]} 50. Rd5+ {[%emt 0:00:10]} Kg4 {[%emt 0:03:45]} 51. Rg5+ {[%emt 0:01:05]} Kh3 {[%emt 0:00:01]} 52. Kb5 {[%emt 0:06:33]} Re3 {[%emt 0:03:32]} 53. Kxb4 {[%emt 0:00:20]} Rxg3 {[%emt 0:00:09]} 54. Rxg3+ {[%emt 0:00:36]} Kxg3 {[%emt 0:00:02]} 55. Kc5 {[%emt 0:00:08]} Kxh4 {[%emt 0:00:21]} 56. b4 {[%emt 0:00:13]} Kg4 {[%emt 0:00:31]} 57. b5 {[%emt 0:01:27]} h4 {[%emt 0:00:01]} 58. b6 {[%emt 0:00:03]} h3 {[%emt 0:00:03]} 59. b7 {[%emt 0:00:02]} h2 {[%emt 0:00:03]} 60. b8=Q {[%emt 0:00:02]} h1=Q {[%emt 0:00:05]} 61. Qc8+ {[%emt 0:03:43]} Kg3 {[%emt 0:01:15]} 62. Kd6 {[%emt 0:01:53]} Qe4 {[%emt 0:01:47]} 0-1

[Event "UKR-ch Semifinal 2019"]
[Site "Omelnyk"]
[Date "2019.10.14"]
[Round "9.7"]
[White "Frolov, Artur"]
[Black "Belous, Mikhail"]
[Result "1/2-1/2"]
[ECO "B94"]
[WhiteElo "2423"]
[BlackElo "2319"]
[Annotator "NA RC"]
[PlyCount "68"]
[EventDate "2019.10.06"]
[EventType "swiss"]
[EventCountry "UKR"]
[SourceTitle "playchess.com"]
[Source "ChessBase"]
[SourceQuality "1"]
[TimeControl "40/5400+30:1800+30"]

1. e4 {[%emt 0:00:00]} c5 {[%emt 0:00:00]} 2. Nf3 {[%emt 0:00:00]} d6 {[%emt 0:00:00]} 3. d4 {[%emt 0:00:17]} cxd4 {[%emt 0:00:00]} 4. Nxd4 {[%emt 0:00:04]} Nf6 {[%emt 0:00:01]} 5. Nc3 {[%emt 0:00:03]} a6 {[%emt 0:00:06]} 6. Bg5 {[%emt 0:02:27]} Nbd7 {[%emt 0:00:25]} 7. Qe2 {[%emt 0:00:36]} h6 {[%emt 0:00:57]} 8. Bh4 {[%emt 0:03:31]} g6 {[%emt 0:01:19]} 9. O-O-O {[%emt 0:04:05]} e5 {[%emt 0:05:11]} 10. Nb3 {[%emt 0:02:47]} Be7 {[%emt 0:01:45]} 11. a4 {[%emt 0:11:02]} Kf8 {[%emt 0:07:26]} 12. f3 {[%emt 0:01:46]} Kg7 {[%emt 0:01:09]} 13. g4 {[%emt 0:03:49]} b5 {[%emt 0:12:52]} 14. a5 {[%emt 0:07:25]} Qc7 {[%emt 0:07:48]} 15. Kb1 {[%emt 0:04:49]} Bb7 {[%emt 0:05:28]} 16. Bxf6+ {[%emt 0:11:53]} Nxf6 {[%emt 0:11:58]} 17. Nd5 {[%emt 0:02:26]} Bxd5 {[%emt 0:03:16]} 18. exd5 {[%emt 0:01:55]} Nd7 {[%emt 0:01:57]} 19. h4 {[%emt 0:03:48]} Nc5 {[%emt 0:00:54]} 20. Nxc5 {[%emt 0:03:20]} dxc5 {[%emt 0:01:27]} 21. Qd2 {[%emt 0:07:54]} Bd6 {[%emt 0:00:52]} 22. Qc3 {[%emt 0:04:48]} c4 {[%emt 0:02:29]} 23. f4 {[%emt 0:00:45]} Rac8 {[%emt 0:01:33]} 24. f5 {[%emt 0:01:09]} b4 {[%emt 0:13:57]} 25. Qf3 {[%emt 0:00:04]} Qxa5 {[%emt 0:06:44]} 26. g5 {[%emt 0:08:56]} Rhf8 {[%emt 0:08:14]} 27. h5 {[%emt 0:01:28]} c3 {[%emt 0:00:28]} 28. fxg6 {[%emt 0:08:19]} fxg6 {[%emt 0:03:44]} 29. Qd3 {[%emt 0:02:46]} cxb2 {[%emt 0:00:40]} 30. Qxg6+ {[%emt 0:01:13]} Kh8 {[%emt 0:00:01]} 31. Qxh6+ {[%emt 0:00:34]} Kg8 {[%emt 0:00:01]} 32. Qg6+ {[%emt 0:00:22]} Kh8 {[%emt 0:00:01]} 33. Qh6+ {[%emt 0:00:35]} Kg8 {[%emt 0:00:02]} 34. Qg6+ {[%emt 0:00:11]} Kh8 {[%emt 0:00:43]} 1/2-1/2

[Event "UKR-ch Semifinal 2019"]
[Site "Omelnyk"]
[Date "2019.10.14"]
[Round "9.8"]
[White "Vetoshko, Volodymyr"]
[Black "Bondar, Dmytro"]
[Result "1/2-1/2"]
[ECO "B31"]
[WhiteElo "2506"]
[BlackElo "2281"]
[Annotator "RC"]
[PlyCount "142"]
[EventDate "2019.10.06"]
[EventType "swiss"]
[EventCountry "UKR"]
[SourceTitle "playchess.com"]
[Source "ChessBase"]
[SourceQuality "1"]
[TimeControl "40/5400+30:1800+30"]

1. e4 {[%emt 0:00:00]} c5 {[%emt 0:00:00]} 2. Nf3 {[%emt 0:00:18]} Nc6 3. Bb5 g6 {[%emt 0:00:00]} 4. Bxc6 {[%emt 0:00:17]} dxc6 {[%emt 0:00:00]} 5. d3 {[%emt 0:01:41]} Bg7 {[%emt 0:00:00]} 6. h3 {[%emt 0:00:27]} e5 {[%emt 0:00:47]} 7. a3 {[%emt 0:05:21]} Qd6 {[%emt 0:06:24]} 8. Nbd2 {[%emt 0:03:38]} Be6 {[%emt 0:03:00]} 9. O-O {[%emt 0:11:31]} f6 {[%emt 0:06:06]} 10. Nc4 {[%emt 0:17:37]} Bxc4 {[%emt 0:08:36]} 11. dxc4 {[%emt 0:00:02]} Qxd1 {[%emt 0:03:53]} 12. Rxd1 {[%emt 0:00:03]} Bh6 {[%emt 0:00:22]} 13. b4 {[%emt 0:09:45]} Bxc1 {[%emt 0:06:55]} 14. Rdxc1 {[%emt 0:05:16]} cxb4 {[%emt 0:05:20]} 15. axb4 {[%emt 0:00:28]} Nh6 {[%emt 0:06:54]} 16. c5 {[%emt 0:08:23]} Nf7 {[%emt 0:08:20]} 17. Kf1 {[%emt 0:05:26]} Ke7 {[%emt 0:05:44]} 18. Nd2 {[%emt 0:01:12]} Rhd8 {[%emt 0:05:18]} 19. Nc4 {[%emt 0:01:23]} a6 {[%emt 0:06:49]} 20. c3 {[%emt 0:03:37]} h5 {[%emt 0:05:40]} 21. h4 {[%emt 0:01:55]} g5 {[%emt 0:00:51]} 22. Ke2 {[%emt 0:06:58]} Rg8 {[%emt 0:04:07]} 23. Rh1 {[%emt 0:00:56]} gxh4 {[%emt 0:06:19]} 24. Ne3 {[%emt 0:00:27]} Ng5 {[%emt 0:01:52]} 25. Rxh4 {[%emt 0:00:32]} a5 {[%emt 0:02:14]} 26. bxa5 {[%emt 0:03:24]} Ne6 {[%emt 0:00:32]} 27. Nf5+ {[%emt 0:02:13]} Kd7 {[%emt 0:00:13]} 28. Kf3 {[%emt 0:00:44]} Rh8 {[%emt 0:03:34]} 29. Ng3 {[%emt 0:02:56]} Nxc5 {[%emt 0:01:32]} 30. Rxh5 {[%emt 0:00:27]} Rxh5 {[%emt 0:00:33]} 31. Nxh5 {[%emt 0:00:00]} Ke7 {[%emt 0:00:11]} 32. Ng3 {[%emt 0:00:58]} Rd8 {[%emt 0:00:50]} 33. Ke2 {[%emt 0:02:27]} Rd3 {[%emt 0:00:55]} 34. Nf5+ {[%emt 0:01:58]} Kf7 {[%emt 0:00:30]} 35. Rc1 {[%emt 0:01:26]} Rd8 {[%emt 0:00:25]} 36. f3 {[%emt 0:01:08]} Nd3 {[%emt 0:02:37]} 37. Rb1 {[%emt 0:00:43]} Nc5 {[%emt 0:00:36]} 38. Rh1 {[%emt 0:00:27]} Ke6 {[%emt 0:00:29]} 39. Rh7 {[%emt 0:02:44]} Rd7 {[%emt 0:00:01]} 40. Ng7+ {[%emt 0:00:00]} Kf7 {[%emt 0:00:00]} 41. Nf5+ {[%emt 0:04:16]} Ke6 {[%emt 0:00:58]} 42. Rh6 {[%emt 0:08:52]} Kf7 {[%emt 0:09:38]} 43. Rh8 {[%emt 0:03:28]} Na4 {[%emt 0:04:41]} 44. Rh7+ {[%emt 0:01:08]} Ke8 {[%emt 0:02:49]} 45. Rh8+ {[%emt 0:03:02]} Kf7 {[%emt 0:00:04]} 46. Rh7+ {[%emt 0:00:02]} Ke8 {[%emt 0:00:03]} 47. Rxd7 {[%emt 0:00:04]} Kxd7 {[%emt 0:00:09]} 48. Kd2 {[%emt 0:00:07]} Nc5 {[%emt 0:01:20]} 49. c4 {[%emt 0:01:08]} Ne6 {[%emt 0:05:29]} 50. Kc3 {[%emt 0:02:32]} Nf4 {[%emt 0:02:57]} 51. g3 {[%emt 0:02:27]} Ne6 {[%emt 0:00:49]} 52. Kb4 {[%emt 0:00:26]} Ng5 {[%emt 0:00:56]} 53. Kc5 {[%emt 0:00:52]} Kc7 {[%emt 0:01:29]} 54. Ng7 {[%emt 0:00:08]} Nxf3 {[%emt 0:02:24]} 55. Ne8+ {[%emt 0:00:05]} Kb8 {[%emt 0:00:36]} 56. Nxf6 {[%emt 0:00:32]} Ka7 {[%emt 0:01:57]} 57. Ne8 {[%emt 0:06:09]} Ka6 {[%emt 0:01:23]} 58. Nd6 {[%emt 0:00:19]} Ng5 {[%emt 0:01:22]} 59. g4 {[%emt 0:00:55]} Ne6+ {[%emt 0:00:08]} 60. Kb4 {[%emt 0:00:01]} c5+ {[%emt 0:01:20]} 61. Ka4 {[%emt 0:01:53]} Ng5 {[%emt 0:00:10]} 62. Ne8 {[%emt 0:01:06]} Ne6 {[%emt 0:01:04]} 63. Nf6 {[%emt 0:00:24]} Ng5 {[%emt 0:00:20]} 64. Nd7 {[%emt 0:01:47]} Nxe4 {[%emt 0:00:02]} 65. Nxe5 {[%emt 0:00:15]} Nc3+ {[%emt 0:00:13]} 66. Kb3 {[%emt 0:00:09]} Ne4 {[%emt 0:00:04]} 67. Kc2 {[%emt 0:00:43]} Kxa5 {[%emt 0:00:30]} 68. Kd3 {[%emt 0:00:45]} Ng5 {[%emt 0:00:25]} 69. Nd7 {[%emt 0:00:28]} Kb4 {[%emt 0:00:21]} 70. Nb6 {[%emt 0:00:19]} Ka5 {[%emt 0:00:16]} 71. Nd7 {[%emt 0:00:59]} Kb4 {[%emt 0:00:01]} 1/2-1/2